bitfinex/quotes_BTCUSD_20220304
["timestamp","ask_amount","ask_price","bid_price","bid_amount"]
[1646366961476,0.0133898,41399.0,41390.0,0.16163586]
[1646366961725,0.01200134,41398.0,41390.0,0.16163586]
[1646366961924,0.01481904,41396.0,41390.0,0.16163586]
[1646366962128,0.01466373,41396.0,41390.0,0.16163586]
[1646366962323,0.13616,41401.0,41390.0,0.16163586]
[1646366962524,0.01411413,41396.0,41390.0,0.16163586]
[1646366962723,0.01491452,41396.0,41390.0,0.16163586]
[1646366962923,0.01342548,41396.0,41392.0,0.20958288]
[1646366963523,0.21830083,41398.0,41390.0,0.16163586]
[1646366963728,0.01520337,41396.0,41390.0,0.16163586]
[1646366963924,0.0193,41397.0,41390.0,0.16163586]
[1646366964126,0.01558055,41396.0,41390.0,0.16163586]
[1646366967373,0.01364169,41396.0,41390.0,0.16163586]
[1646366967575,0.01138816,41396.0,41390.0,0.16163586]
[1646366967775,0.01297843,41396.0,41390.0,0.16163586]
[1646366967976,0.0193,41397.0,41390.0,0.16163586]
[1646366968178,0.01097191,41396.0,41390.0,0.16163586]
[1646366968983,0.0193,41397.0,41390.0,0.16163586]
[1646366969425,0.01364698,41400.0,41390.0,0.16163586]
[1646366970025,0.0193,41397.0,41390.0,0.16163586]
[1646366972979,0.03573808,41405.0,41390.0,0.16163586]
[1646366973174,0.03573808,41405.0,41399.0,0.2725785]
[1646366973374,0.01176183,41403.0,41401.0,0.19400696]
[1646366973774,0.01103228,41403.0,41401.0,0.19400696]
[1646366973974,0.29976185,41410.0,41401.0,0.19400696]
[1646366974176,0.01176608,41408.0,41401.0,0.19400696]
[1646366974378,0.01149989,41406.0,41401.0,0.19400696]
[1646366974573,0.015729,41408.0,41401.0,0.19400696]
[1646366974776,0.01246105,41407.0,41401.0,0.19400696]
[1646366978325,0.11246105,41407.0,41401.0,0.19400696]
[1646366978526,0.11246105,41407.0,41397.0,0.002]
[1646366979327,0.11246105,41407.0,41399.0,0.2476597]
[1646366979531,0.01246105,41407.0,41401.0,0.17309175]
[1646366981075,0.01035834,41408.0,41401.0,0.18309175]
[1646366981972,0.28216,41410.0,41401.0,0.18309175]
[1646366981973,0.01046901,41407.0,41401.0,0.18309175]
[1646366985030,0.1,41409.0,41401.0,0.00990725]
[1646366985031,0.01159811,41406.0,41401.0,0.00990725]
[1646366985240,0.02409,41404.0,41401.0,0.00990725]
[1646366985433,0.08456,41403.0,41401.0,0.00990725]
[1646366985631,0.01586575,41402.0,41401.0,0.00990725]
[1646366985830,0.06426575,41402.0,41401.0,0.00990725]
[1646366986034,0.63066864,41402.0,41401.0,0.00990725]
[1646366986230,0.73066864,41402.0,41401.0,0.00990725]
[1646366987031,0.74996864,41402.0,41401.0,0.00990725]
[1646366987230,0.38297464,41402.0,41401.0,0.00990725]
[1646366987434,0.28297464,41402.0,41401.0,0.00990725]
[1646366987632,0.38297464,41402.0,41401.0,0.00990725]
[1646366987832,0.74996864,41402.0,41401.0,0.00990725]
[1646366988076,0.73066864,41402.0,41401.0,0.00990725]
[1646366988277,0.76682864,41402.0,41401.0,0.00990725]
[1646366988478,0.75475864,41402.0,41401.0,0.00990725]
[1646366989077,0.77405864,41402.0,41401.0,0.00990725]
[1646366989478,0.74865329,41402.0,41401.0,0.00990725]
[1646366990082,0.74765329,41402.0,41401.0,0.00990725]
[1646366990680,0.40606464,41402.0,41401.0,0.00990725]
[1646366990879,0.75375864,41402.0,41401.0,0.00990725]
[1646366991079,0.38676464,41402.0,41401.0,0.00990725]
[1646366991480,0.75375864,41402.0,41401.0,0.00990725]
[1646366991932,0.77305864,41402.0,41401.0,0.00990725]
[1646366992127,0.40606464,41402.0,41401.0,0.00990725]
[1646366992327,0.38676464,41402.0,41401.0,0.00990725]
[1646366992527,0.28676464,41402.0,41401.0,0.00990725]
[1646366992731,0.38676464,41402.0,41401.0,0.00990725]
[1646366993027,0.40606464,41402.0,41401.0,0.00990725]
[1646366995128,0.38676464,41402.0,41401.0,0.00990725]
[1646366995987,0.40606464,41402.0,41401.0,0.00990725]
[1646366996992,0.38676464,41402.0,41401.0,0.00990725]
[1646366997192,0.28676464,41402.0,41401.0,0.00990725]
[1646366997392,0.38676464,41402.0,41401.0,0.00990725]
[1646366997997,0.40606464,41402.0,41401.0,0.00990725]
[1646366998194,0.35766464,41402.0,41401.0,0.00990725]
[1646366998594,0.15825575,41402.0,41401.0,0.00990725]
[1646366998894,0.03895575,41402.0,41401.0,0.00990725]
[1646366999528,0.19493745,41402.0,41401.0,0.00990725]
[1646366999931,0.21423745,41402.0,41401.0,0.00990725]
[1646367000131,0.19014745,41402.0,41401.0,0.00990725]
[1646367000331,0.04019178,41402.0,41401.0,0.00990725]
[1646367000934,0.02089178,41402.0,41401.0,0.00990725]
[1646367002034,0.04019178,41402.0,41401.0,0.00990725]
[1646367003478,0.04019178,41402.0,41401.0,0.00920755]
[1646367004079,0.02089178,41402.0,41401.0,0.00920755]
[1646367004481,0.20474771,41402.0,41401.0,0.00920755]
[1646367004882,0.02089178,41402.0,41401.0,0.00920755]
[1646367005086,0.04019178,41402.0,41401.0,0.00920755]
[1646367007229,0.02532603,41402.0,41401.0,0.00920755]
[1646367007623,0.02532603,41402.0,41401.0,0.28744717]
[1646367008026,0.00602603,41402.0,41401.0,0.28744717]
[1646367008427,0.00602603,41402.0,41401.0,0.00920755]
[1646367010229,0.01784183,41402.0,41401.0,0.00920755]
[1646367010908,0.00602603,41402.0,41401.0,0.00920755]
[1646367011110,0.02532603,41402.0,41401.0,0.00920755]
[1646367012405,0.03839186,41402.0,41401.0,0.00920755]
[1646367012607,0.00602603,41402.0,41401.0,0.00920755]
[1646367012804,0.00202603,41402.0,41401.0,0.00920755]
[1646367013006,0.02132603,41402.0,41401.0,0.00920755]
[1646367014108,0.00202603,41402.0,41401.0,0.00920755]
[1646367014527,0.01638085,41402.0,41401.0,0.00920755]
[1646367014927,0.03568085,41402.0,41401.0,0.00920755]
[1646367016332,0.38918135,41402.0,41401.0,0.00920755]
[1646367016731,0.48918135,41402.0,41401.0,0.00920755]
[1646367017132,0.13568085,41402.0,41401.0,0.00920755]
[1646367017834,0.03568085,41402.0,41401.0,0.00920755]
[1646367019083,0.01638085,41402.0,41401.0,0.00920755]
[1646367020086,0.03568085,41402.0,41401.0,0.00920755]
[1646367020890,0.01638085,41402.0,41401.0,0.00920755]
[1646367021088,0.00202603,41402.0,41401.0,0.00920755]
[1646367021732,0.11045325,41403.0,41401.0,0.00920755]
[1646367021933,0.01391389,41402.0,41401.0,0.00920755]
[1646367022132,0.1,41403.0,41401.0,0.00920755]
[1646367022533,0.03599869,41405.0,41401.0,0.00920755]
[1646367023131,0.01331154,41404.0,41401.0,0.00920755]
[1646367025577,0.01531229,41403.0,41401.0,0.00920755]
[1646367025782,0.01223862,41403.0,41401.0,0.00920755]
[1646367025978,0.0108753,41403.0,41401.0,0.00920755]
[1646367026178,0.01495634,41403.0,41401.0,0.00920755]
[1646367026378,0.01401639,41404.0,41401.0,0.00920755]
[1646367026583,0.01284097,41403.0,41401.0,0.00920755]
[1646367026779,0.03599869,41405.0,41401.0,0.00920755]
[1646367026980,0.01591011,41404.0,41401.0,0.00920755]
[1646367027180,0.01110538,41403.0,41401.0,0.00920755]
[1646367027380,0.03599869,41405.0,41401.0,0.00920755]
[1646367027580,0.01441393,41403.0,41401.0,0.00920755]
[1646367027781,0.0127316,41403.0,41401.0,0.00920755]
[1646367028081,0.01171729,41403.0,41401.0,0.00920755]
[1646367028281,0.01597869,41404.0,41401.0,0.00920755]
[1646367028480,0.03599869,41405.0,41401.0,0.00920755]
[1646367028880,0.01101529,41403.0,41401.0,0.00920755]
[1646367029331,0.01374046,41403.0,41401.0,0.00920755]
[1646367029532,0.01454846,41403.0,41401.0,0.00920755]
[1646367029831,0.03599869,41405.0,41401.0,0.00920755]
[1646367030035,0.0114752,41404.0,41401.0,0.00920755]
[1646367032233,0.03599869,41405.0,41401.0,0.00920755]
[1646367032836,0.01476937,41403.0,41401.0,0.00920755]
[1646367033080,0.01356133,41403.0,41401.0,0.00920755]
[1646367033280,0.01041986,41403.0,41401.0,0.00920755]
[1646367033480,0.13599869,41405.0,41401.0,0.00920755]
[1646367033680,0.01478364,41403.0,41401.0,0.00920755]
[1646367033880,0.13599869,41405.0,41401.0,0.00920755]
[1646367034080,0.01061699,41403.0,41401.0,0.00920755]
[1646367034286,0.13599869,41405.0,41401.0,0.00920755]
[1646367034680,0.01318832,41404.0,41401.0,0.00920755]
[1646367034882,0.01280386,41403.0,41401.0,0.00920755]
[1646367035083,0.01473751,41403.0,41401.0,0.00920755]
[1646367035280,0.01179847,41403.0,41401.0,0.00920755]
[1646367035481,0.01412319,41403.0,41401.0,0.00920755]
[1646367035681,0.01327034,41404.0,41401.0,0.00920755]
[1646367035881,0.01359474,41403.0,41401.0,0.00920755]
[1646367036181,0.01412693,41403.0,41401.0,0.00920755]
[1646367036381,0.01068451,41403.0,41401.0,0.00920755]
[1646367036584,0.03599869,41405.0,41401.0,0.00920755]
[1646367036834,0.01168102,41403.0,41401.0,0.00920755]
[1646367037026,0.31238206,41405.0,41401.0,0.00920755]
[1646367037226,0.01439214,41403.0,41401.0,0.00920755]
[1646367037426,0.01333238,41404.0,41401.0,0.00920755]
[1646367037627,0.13599869,41405.0,41401.0,0.00920755]
[1646367037826,0.03599869,41405.0,41401.0,0.00920755]
[1646367038026,0.01596697,41403.0,41401.0,0.00920755]
[1646367038226,0.01056802,41403.0,41401.0,0.00920755]
[1646367038427,0.01387139,41403.0,41401.0,0.00920755]
[1646367038627,0.03899869,41405.0,41401.0,0.00920755]
[1646367038830,0.01556611,41403.0,41401.0,0.00920755]
[1646367039027,0.03899869,41405.0,41401.0,0.00920755]
[1646367039229,0.03599869,41405.0,41401.0,0.00920755]
[1646367039433,0.01140193,41403.0,41401.0,0.00920755]
[1646367039831,0.0112561,41403.0,41401.0,0.00920755]
[1646367040032,0.01272192,41404.0,41401.0,0.00920755]
[1646367040231,0.01472436,41403.0,41401.0,0.00920755]
[1646367040475,0.01295313,41403.0,41401.0,0.00920755]
[1646367040681,0.03599869,41405.0,41401.0,0.00920755]
[1646367041378,0.01268737,41403.0,41401.0,0.00920755]
[1646367041576,0.01461342,41403.0,41401.0,0.00920755]
[1646367041776,0.01345288,41403.0,41394.0,0.41630776]
[1646367041980,0.01022181,41404.0,41394.0,0.41630776]
[1646367042176,0.01414663,41403.0,41394.0,0.41630776]
[1646367042377,0.01381872,41403.0,41394.0,0.41630776]
[1646367042677,0.03499869,41405.0,41394.0,0.41630776]
[1646367043077,0.01446864,41404.0,41394.0,0.41630776]
[1646367043276,0.01428272,41403.0,41394.0,0.41630776]
[1646367043476,0.01224919,41403.0,41394.0,0.41630776]
[1646367043676,0.03499869,41405.0,41394.0,0.41630776]
[1646367044077,0.03499869,41405.0,41401.0,0.17443405]
[1646367044934,0.2364,41409.0,41401.0,0.17443405]
[1646367045136,0.2364,41409.0,41405.0,0.21996077]
[1646367045334,0.01585444,41410.0,41408.0,0.21091426]
[1646367045631,0.0193,41411.0,41408.0,0.21091426]
[1646367045632,0.01360355,41412.0,41408.0,0.21091426]
[1646367045832,0.0152511,41411.0,41408.0,0.21091426]
[1646367046034,0.01219971,41410.0,41408.0,0.21091426]
[1646367046232,0.1951779,41413.0,41408.0,0.21091426]
[1646367046533,0.005,41414.0,41408.0,0.21091426]
[1646367046832,0.01068315,41410.0,41408.0,0.21091426]
[1646367047036,0.01559882,41414.0,41408.0,0.21091426]
[1646367047234,0.01059882,41414.0,41408.0,0.21091426]
[1646367048083,0.0703,41416.0,41408.0,0.21091426]
[1646367048282,0.0154827,41415.0,41408.0,0.21091426]
[1646367048482,0.01169402,41414.0,41408.0,0.21091426]
[1646367048684,0.001,41416.0,41408.0,0.21091426]
[1646367049087,0.01144735,41416.0,41408.0,0.21091426]
[1646367049284,0.01044735,41416.0,41408.0,0.21091426]
[1646367050087,0.36251737,41416.0,41408.0,0.21091426]
[1646367050287,0.11062004,41415.0,41403.0,0.002]
[1646367050589,0.01476179,41414.0,41403.0,0.002]
[1646367051289,0.0193,41412.0,41402.0,0.26403819]
[1646367051487,0.19032986,41409.0,41402.0,0.26403819]
[1646367052132,0.01121421,41411.0,41402.0,0.26403819]
[1646367053133,0.21736627,41410.0,41402.0,0.26403819]
[1646367053334,0.01121421,41411.0,41402.0,0.26403819]
[1646367053532,0.3346,41414.0,41402.0,0.26403819]
[1646367053732,0.3346,41414.0,41402.0,0.26284782]
[1646367053934,0.01096891,41411.0,41402.0,0.26284782]
[1646367055499,0.01096891,41411.0,41408.0,0.16077888]
[1646367057101,0.0106073,41411.0,41408.0,0.16077888]
[1646367057400,0.01307204,41415.0,41408.0,0.16077888]
[1646367057603,0.01281397,41414.0,41408.0,0.16077888]
[1646367057801,0.01286017,41412.0,41408.0,0.16077888]
[1646367058002,0.0193,41412.0,41408.0,0.16077888]
[1646367058204,0.03009482,41412.0,41408.0,0.16077888]
[1646367059003,0.01079482,41412.0,41408.0,0.16077888]
[1646367060034,0.03009482,41412.0,41408.0,0.16077888]
[1646367061734,0.01079482,41412.0,41408.0,0.16077888]
[1646367063989,0.03009482,41412.0,41408.0,0.16077888]
[1646367065789,0.01284309,41411.0,41408.0,0.16077888]
[1646367065993,0.01284309,41411.0,41402.0,0.26284782]
[1646367066193,0.01284309,41411.0,41403.0,0.001]
[1646367067038,0.01284309,41411.0,41405.0,0.15837461]
[1646367068533,0.01207,41415.0,41405.0,0.15837461]
[1646367068534,0.01280014,41410.0,41405.0,0.15837461]
[1646367069736,0.01504795,41411.0,41405.0,0.15837461]
[1646367070992,0.01061224,41410.0,41405.0,0.15837461]
[1646367074735,0.01061224,41410.0,41405.0,0.39764042]
[1646367075135,0.01061224,41410.0,41405.0,0.15837461]
[1646367077139,0.01061224,41410.0,41405.0,0.15830707]
[1646367077439,0.0148344,41412.0,41405.0,0.15830707]
[1646367077639,0.01019464,41411.0,41405.0,0.15830707]
[1646367077839,0.01308784,41410.0,41405.0,0.15830707]
[1646367078088,0.01588927,41408.0,41405.0,0.15830707]
[1646367078283,0.01016801,41408.0,41405.0,0.15830707]
[1646367078588,0.0193,41412.0,41405.0,0.15830707]
[1646367078782,0.01257457,41411.0,41405.0,0.15830707]
[1646367079183,0.0109033,41410.0,41405.0,0.15830707]
[1646367079384,0.01435523,41408.0,41405.0,0.15830707]
[1646367079583,0.01190248,41407.0,41405.0,0.15830707]
[1646367080388,0.01190248,41407.0,41401.0,0.22334845]
[1646367080587,0.01190248,41407.0,41401.0,0.003]
[1646367080789,0.0484,41406.0,41401.0,0.003]
[1646367080991,0.01089705,41404.0,41401.0,0.003]
[1646367081293,0.01402672,41403.0,41395.0,0.5731]
[1646367081489,0.21478007,41402.0,41395.0,0.74732376]
[1646367081737,0.01596112,41402.0,41395.0,0.74732376]
[1646367081938,0.01273647,41400.0,41395.0,0.74732376]
[1646367082146,0.1,41404.0,41395.0,0.74732376]
[1646367082147,0.01393072,41399.0,41395.0,0.74732376]
[1646367082339,0.01393072,41399.0,41395.0,0.5731]
[1646367082539,0.0629267,41403.0,41395.0,0.5731]
[1646367082540,0.36375815,41402.0,41395.0,0.5731]
[1646367082843,0.16704855,41399.0,41395.0,0.5731]
[1646367083039,0.0193,41398.0,41390.0,0.2388]
[1646367083240,0.37137002,41398.0,41390.0,0.004]
[1646367083439,0.37137002,41398.0,41386.0,1.14736603]
[1646367083639,0.1,41397.0,41390.0,0.20263922]
[1646367085337,0.01207,41398.0,41390.0,0.20263922]
[1646367085602,0.17911855,41399.0,41390.0,0.20263922]
[1646367086001,0.27911855,41399.0,41390.0,0.20263922]
[1646367087501,0.17911855,41399.0,41390.0,0.20263922]
[1646367088101,0.16704855,41399.0,41390.0,0.20263922]
[1646367088304,0.26704855,41399.0,41390.0,0.20263922]
[1646367088702,0.1,41399.0,41390.0,0.20263922]
[1646367089342,0.01422628,41400.0,41397.0,0.18752135]
[1646367089539,0.01142279,41400.0,41397.0,0.18752135]
[1646367089840,0.22945953,41400.0,41397.0,0.18752135]
[1646367090038,0.22945953,41400.0,41389.0,0.2411]
[1646367090240,0.58152955,41400.0,41389.0,0.2411]
[1646367090438,0.22945953,41400.0,41389.0,0.2411]
[1646367090638,0.1,41399.0,41389.0,0.2411]
[1646367090839,0.22945953,41400.0,41386.0,1.14736603]
[1646367091243,0.22945953,41400.0,41391.0,0.20103533]
[1646367092843,0.01099684,41399.0,41391.0,0.20103533]
[1646367093281,0.11099684,41399.0,41391.0,0.20103533]
[1646367093487,0.01034085,41398.0,41391.0,0.20103533]
[1646367093682,0.31598495,41399.0,41386.0,1.14736603]
[1646367093683,0.010528,41396.0,41386.0,1.14736603]
[1646367093882,0.010528,41396.0,41383.0,0.2411]
[1646367093883,0.0484,41395.0,41383.0,0.2411]
[1646367094086,0.3642625,41394.0,41383.0,0.2411]
[1646367094387,0.01078554,41392.0,41386.0,0.002]
[1646367094584,0.1484,41393.0,41386.0,0.002]
[1646367094585,0.01526635,41390.0,41386.0,0.002]
[1646367094783,0.0484,41389.0,41386.0,0.002]
[1646367094984,0.010678,41388.0,41386.0,0.002]
[1646367095384,0.010678,41388.0,41384.0,0.20908984]
[1646367095885,0.0484,41389.0,41384.0,0.20908984]
[1646367097540,0.08531783,41389.0,41384.0,0.20908984]
[1646367097841,0.08531783,41389.0,41384.0,0.20900848]
[1646367099544,0.03691783,41389.0,41384.0,0.20900848]
[1646367104838,0.01208,41395.0,41384.0,0.20900848]
[1646367105136,0.01208,41395.0,41384.0,0.23309848]
[1646367105335,0.02949348,41396.0,41384.0,0.23309848]
[1646367106037,0.18336252,41396.0,41392.0,0.21797324]
[1646367106338,0.01010069,41396.0,41384.0,0.02409]
[1646367107342,0.16296494,41395.0,41388.0,0.1555165]
[1646367107539,0.01010069,41396.0,41388.0,0.1555165]
[1646367109189,0.1,41398.0,41388.0,0.1555165]
[1646367109389,0.01598793,41395.0,41389.0,0.25406405]
[1646367110692,0.59527002,41399.0,41389.0,0.25406405]
[1646367111090,0.01069291,41396.0,41389.0,0.25406405]
[1646367111293,0.01133009,41395.0,41389.0,0.25406405]
[1646367111491,0.01520557,41394.0,41389.0,0.25406405]
[1646367111743,0.01244045,41392.0,41388.0,0.1555165]
[1646367112546,0.3089563,41398.0,41388.0,0.1555165]
[1646367112743,0.01441873,41396.0,41388.0,0.38261452]
[1646367113041,0.29339635,41398.0,41388.0,0.38261452]
[1646367113241,0.01098205,41394.0,41388.0,0.38261452]
[1646367113441,0.01092084,41394.0,41388.0,0.38261452]
[1646367113641,0.29339635,41398.0,41388.0,0.1555165]
[1646367113841,0.01580587,41394.0,41388.0,0.1555165]
[1646367114042,0.01274026,41394.0,41388.0,0.1555165]
[1646367114241,0.29339635,41398.0,41388.0,0.1555165]
[1646367114442,0.01430495,41394.0,41388.0,0.1555165]
[1646367114642,0.30799534,41398.0,41388.0,0.1555165]
[1646367114841,0.01107986,41396.0,41388.0,0.1555165]
[1646367115046,0.01123759,41395.0,41388.0,0.1555165]
[1646367115246,0.29339635,41398.0,41388.0,0.1555165]
[1646367115489,0.01034672,41394.0,41388.0,0.1555165]
[1646367115789,0.30613674,41398.0,41388.0,0.1555165]
[1646367115994,0.01437471,41396.0,41388.0,0.1555165]
[1646367116188,0.01551127,41395.0,41388.0,0.1555165]
[1646367116389,0.01551127,41395.0,41385.0,0.003]
[1646367116591,0.30660287,41398.0,41385.0,0.003]
[1646367116788,0.02709113,41396.0,41385.0,0.003]
[1646367116990,0.01598033,41396.0,41385.0,0.003]
[1646367117190,0.35207002,41396.0,41385.0,0.003]
[1646367117389,0.21123166,41392.0,41385.0,0.003]
[1646367117593,0.21123166,41392.0,41381.0,0.1962928]
[1646367117791,0.01187351,41391.0,41381.0,0.1962928]
[1646367119838,0.1,41391.0,41381.0,0.1962928]
[1646367120244,0.13638549,41391.0,41381.0,0.1962928]
[1646367121040,0.03638549,41391.0,41381.0,0.1962928]
[1646367121240,0.13638549,41391.0,41381.0,0.19553304]
[1646367122040,0.01036948,41390.0,41381.0,0.19553304]
[1646367122242,0.13638549,41391.0,41381.0,0.19553304]
[1646367122441,0.13638549,41391.0,41381.0,0.54760306]
[1646367122442,0.01284598,41387.0,41381.0,0.54760306]
[1646367122641,0.01284598,41387.0,41381.0,0.19553304]
[1646367123694,0.13638549,41391.0,41381.0,0.54760306]
[1646367123892,0.03638549,41391.0,41381.0,0.54760306]
[1646367124293,0.01053882,41388.0,41381.0,0.54760306]
[1646367124493,0.01328889,41388.0,41381.0,0.54760306]
[1646367124694,0.01123759,41390.0,41381.0,0.54760306]
[1646367124894,0.01235693,41388.0,41381.0,0.54760306]
[1646367125093,0.01123735,41388.0,41381.0,0.54760306]
[1646367125295,0.0156324,41388.0,41381.0,0.54760306]
[1646367125496,0.03638549,41391.0,41381.0,0.54760306]
[1646367125693,0.0121797,41390.0,41381.0,0.54760306]
[1646367125893,0.01502261,41388.0,41381.0,0.54760306]
[1646367126194,0.01478831,41387.0,41381.0,0.19553304]
[1646367126395,0.01428937,41390.0,41381.0,0.19553304]
[1646367126741,0.01528826,41388.0,41381.0,0.19553304]
[1646367126941,0.01573401,41390.0,41381.0,0.19553304]
[1646367127140,0.01131019,41388.0,41381.0,0.19553304]
[1646367127343,0.01365252,41387.0,41381.0,0.19553304]
[1646367127544,0.45431094,41390.0,41381.0,0.19553304]
[1646367127743,0.1,41389.0,41381.0,0.19553304]
[1646367127941,0.01126813,41386.0,41381.0,0.19553304]
[1646367128145,0.16748983,41385.0,41381.0,0.19553304]
[1646367128342,0.01279941,41388.0,41381.0,0.19553304]
[1646367128941,0.01540024,41387.0,41381.0,0.19553304]
[1646367129144,0.03638549,41391.0,41381.0,0.19553304]
[1646367129145,0.01110514,41386.0,41381.0,0.19553304]
[1646367129344,0.04694642,41391.0,41381.0,0.19553304]
[1646367129345,0.01058737,41384.0,41381.0,0.19553304]
[1646367129543,0.03638549,41391.0,41381.0,0.19553304]
[1646367129743,0.01025865,41384.0,41381.0,0.19553304]
[1646367129944,0.01468299,41383.0,41381.0,0.19553304]
[1646367130145,0.01055804,41390.0,41381.0,0.19553304]
[1646367130344,0.01363117,41388.0,41381.0,0.19553304]
[1646367130591,0.01585651,41387.0,41381.0,0.19553304]
[1646367130795,0.01219302,41386.0,41381.0,0.19553304]
[1646367130993,0.01212415,41384.0,41381.0,0.19553304]
[1646367131195,0.01502924,41384.0,41381.0,0.19553304]
[1646367131391,0.01527074,41382.0,41381.0,0.19553304]
[1646367131594,0.0138722,41387.0,41381.0,0.19553304]
[1646367131793,0.011572,41386.0,41381.0,0.17839807]
[1646367131991,0.18953103,41388.0,41381.0,0.17839807]
[1646367131992,0.01073411,41384.0,41381.0,0.17839807]
[1646367132191,0.01052621,41383.0,41381.0,0.17839807]
[1646367132994,0.18953103,41388.0,41380.0,0.5561]
[1646367133193,0.01275329,41382.0,41380.0,0.5561]
[1646367133400,0.21362103,41388.0,41377.0,0.004]
[1646367133401,0.01495197,41380.0,41377.0,0.004]
[1646367133598,0.01495197,41380.0,41366.0,0.0021]
[1646367133599,0.0484,41381.0,41366.0,0.0021]
[1646367133895,0.35496043,41375.0,41366.0,0.35258498]
[1646367134092,0.01416613,41374.0,41366.0,0.0021]
[1646367135142,0.01416613,41374.0,41366.0,0.28003243]
[1646367135343,0.01416613,41374.0,41366.0,0.0021]
[1646367136943,0.1742254,41374.0,41366.0,0.0021]
[1646367137999,0.0252763,41372.0,41366.0,0.0021]
[1646367138195,0.01019889,41371.0,41366.0,0.0021]
[1646367138396,0.01398009,41370.0,41366.0,0.0021]
[1646367138699,0.01587082,41368.0,41366.0,0.0021]
[1646367138896,0.011809,41367.0,41366.0,0.0021]
[1646367139194,0.16772064,41368.0,41366.0,0.0021]
[1646367140399,0.002,41370.0,41366.0,0.0021]
[1646367141596,0.3385,41373.0,41366.0,0.0021]
[1646367142242,0.35058,41373.0,41366.0,0.0021]
[1646367142444,0.03850541,41372.0,41366.0,0.0021]
[1646367142845,0.01441541,41372.0,41366.0,0.0021]
[1646367143543,0.03850541,41372.0,41366.0,0.0021]
[1646367144344,0.3385,41373.0,41366.0,0.0021]
[1646367144746,0.34922779,41373.0,41366.0,0.0021]
[1646367145146,0.3385,41373.0,41366.0,0.0021]
[1646367145995,0.35221943,41373.0,41366.0,0.0021]
[1646367146194,0.01003806,41372.0,41366.0,0.0021]
[1646367146402,0.20669951,41372.0,41366.0,0.0021]
[1646367147197,0.01003806,41372.0,41366.0,0.0021]
[1646367147396,0.01423735,41372.0,41366.0,0.0021]
[1646367147596,0.01203086,41372.0,41366.0,0.0021]
[1646367147996,0.37545749,41373.0,41366.0,0.0021]
[1646367148196,0.20009647,41372.0,41366.0,0.0021]
[1646367149245,0.01208753,41371.0,41366.0,0.0021]
[1646367151750,0.01321009,41370.0,41366.0,0.0021]
[1646367152049,0.01089089,41367.0,41366.0,0.0021]
[1646367152252,0.002,41372.0,41366.0,0.0021]
[1646367152449,0.366994,41371.0,41366.0,0.0021]
[1646367152650,0.17731623,41370.0,41366.0,0.0021]
[1646367153499,0.366994,41370.0,41366.0,0.00202566]
[1646367153797,0.1,41369.0,41366.0,0.00202566]
[1646367154899,0.38949521,41372.0,41366.0,0.00202566]
[1646367154900,0.1,41371.0,41366.0,0.00202566]
[1646367155099,0.16592217,41367.0,41366.0,0.00202566]
[1646367155701,0.18339584,41369.0,41366.0,0.00202566]
[1646367156744,0.105,41371.0,41366.0,0.00202566]
[1646367156949,0.366994,41370.0,41366.0,0.00202566]
[1646367157244,0.1,41369.0,41366.0,0.00202566]
[1646367157446,0.366994,41368.0,41366.0,0.00202566]
[1646367157644,0.45048498,41369.0,41366.0,0.00202566]
[1646367158043,0.17178251,41368.0,41366.0,0.00202566]
[1646367158244,0.45048498,41369.0,41366.0,0.00202566]
[1646367158444,0.1,41369.0,41366.0,0.00202566]
[1646367158844,0.105,41371.0,41366.0,0.00202566]
[1646367159047,0.005,41371.0,41366.0,0.00202566]
[1646367159247,0.105,41371.0,41366.0,0.00202566]
[1646367159647,0.1,41371.0,41366.0,0.00202566]
[1646367161297,0.26816703,41371.0,41366.0,0.00202566]
[1646367161498,0.1,41371.0,41366.0,0.00202566]
[1646367162398,0.0151011,41370.0,41366.0,0.00202566]
[1646367162602,0.0108401,41368.0,41366.0,0.00202566]
[1646367162803,0.01230363,41370.0,41366.0,0.00202566]
[1646367163002,0.2385,41373.0,41366.0,0.00202566]
[1646367163703,0.0109848,41371.0,41368.0,0.18716573]
[1646367163905,0.7572,41376.0,41368.0,0.18716573]
[1646367164104,0.01404439,41374.0,41369.0,0.06009653]
[1646367164349,0.002,41372.0,41369.0,0.06009653]
[1646367164950,0.002,41372.0,41370.0,0.21352599]
[1646367165551,0.01433968,41379.0,41370.0,0.21352599]
[1646367165848,0.56979019,41382.0,41370.0,0.21352599]
[1646367165849,0.01590072,41378.0,41370.0,0.21352599]
[1646367166047,0.56979019,41382.0,41368.0,0.18716573]
[1646367166448,0.01180584,41376.0,41368.0,0.18716573]
[1646367166749,0.0127088,41379.0,41368.0,0.18716573]
[1646367166947,0.1,41381.0,41368.0,0.18716573]
[1646367167351,0.17407826,41376.0,41368.0,0.40620215]
[1646367167552,0.01415094,41375.0,41368.0,0.18716573]
[1646367167747,0.01384244,41374.0,41368.0,0.18716573]
[1646367167990,0.01445456,41372.0,41368.0,0.18716573]
[1646367169895,0.01129838,41374.0,41367.0,0.27180013]
[1646367170093,0.01129838,41374.0,41366.0,0.00202566]
[1646367171194,0.36178336,41374.0,41366.0,0.00202566]
[1646367171847,0.1,41373.0,41366.0,0.00202566]
[1646367172046,0.01399862,41372.0,41366.0,0.00202566]
[1646367172255,0.01209418,41371.0,41366.0,0.00202566]
[1646367172454,0.010525,41370.0,41366.0,0.00202566]
[1646367173450,0.01156014,41372.0,41366.0,0.00202566]
[1646367173652,0.14156014,41372.0,41364.0,0.21901143]
[1646367173852,0.01539822,41371.0,41364.0,0.21901143]
[1646367174450,0.1,41373.0,41368.0,0.22125381]
[1646367174651,0.01324346,41371.0,41368.0,0.22125381]
[1646367174851,0.0156508,41372.0,41368.0,0.22125381]
[1646367175056,0.01117274,41371.0,41368.0,0.22125381]
[1646367175252,0.01291817,41375.0,41368.0,0.22125381]
[1646367175508,0.01304451,41374.0,41368.0,0.22125381]
[1646367175706,0.11331014,41376.0,41368.0,0.22125381]
[1646367175906,0.1,41376.0,41368.0,0.22125381]
[1646367176105,0.0133197,41374.0,41368.0,0.22125381]
[1646367176309,0.01066604,41372.0,41368.0,0.22125381]
[1646367177407,0.01016059,41376.0,41368.0,0.22125381]
[1646367177808,0.01016059,41376.0,41371.0,0.16760528]
[1646367182853,0.01016059,41376.0,41368.0,0.002]
[1646367183099,0.01016511,41375.0,41368.0,0.002]
[1646367183297,0.01348629,41374.0,41368.0,0.002]
[1646367183497,0.36629,41376.0,41368.0,0.002]
[1646367183702,0.36629,41376.0,41363.0,0.0021]
[1646367183898,0.01234509,41371.0,41365.0,0.18800256]
[1646367184099,0.36629,41376.0,41365.0,0.18800256]
[1646367184498,0.0128766,41368.0,41365.0,0.18800256]
[1646367184698,0.01225113,41368.0,41365.0,0.18800256]
[1646367184898,0.01025608,41375.0,41365.0,0.18800256]
[1646367185098,0.01027939,41374.0,41365.0,0.18800256]
[1646367185297,0.01315385,41372.0,41365.0,0.18800256]